bitfinex/quotes_ETHUSD_20240702
["timestamp","ask_amount","ask_price","bid_price","bid_amount"]
[1719886005174,2.0647919,3452.2,3452.0,2.89683]
[1719886005368,2.0647919,3452.1,3452.0,2.89683]
[1719886006179,5.2692,3452.8,3452.0,2.89683]
[1719886006180,4.9611719,3452.6,3452.0,2.89683]
[1719886006368,2.56622499,3452.5,3452.0,2.89683]
[1719886006578,2.56622499,3452.4,3452.0,2.89683]
[1719886006749,2.56622499,3452.3,3452.0,2.89683]
[1719886006947,2.0647919,3452.2,3452.0,2.89683]
[1719886007282,2.0647919,3452.1,3452.0,2.89683]
[1719886007458,2.15957178,3452.1,3452.0,2.89683]
[1719886008075,2.15957178,3452.1,3451.8,5.897]
[1719886008382,2.0647919,3452.0,3451.8,7.601418]
[1719886008680,0.09477988,3452.1,3451.8,7.601418]
[1719886008893,2.06480536,3452.0,3451.8,7.601418]
[1719886009084,5.23143,3452.4,3451.8,7.601418]
[1719886009246,0.09477988,3451.9,3451.8,7.601418]
[1719886009446,5.23143,3452.4,3451.8,7.601418]
[1719886009646,0.09477988,3451.9,3451.8,7.601418]
[1719886009878,5.23143,3452.4,3451.8,7.601418]
[1719886010078,0.09477988,3451.9,3451.8,7.601418]
[1719886010583,5.23143,3452.4,3451.8,7.601418]
[1719886010780,2.566258,3452.3,3451.8,7.601418]
[1719886010983,2.0648227,3452.2,3451.8,7.601418]
[1719886011345,2.06482371,3452.1,3451.8,7.601418]
[1719886011577,2.06482371,3452.0,3451.9,1.2937498]
[1719886012280,2.15960359,3452.0,3451.9,1.2937498]
[1719886014252,2.15960359,3452.0,3451.8,3.825]
[1719886014458,0.09477988,3452.0,3451.8,3.825]
[1719886014995,2.1595738,3451.9,3451.8,3.825]
[1719886016392,2.1595738,3451.9,3451.8,3.0]
[1719886017699,0.09472124,3451.9,3451.8,3.0]
[1719886017991,2.06489036,3451.9,3451.8,3.916108]
[1719886018181,0.09472124,3451.9,3451.8,3.916108]
[1719886018376,2.8967,3452.2,3451.8,3.916108]
[1719886018568,2.1596107,3451.9,3451.8,3.0]
[1719886018764,2.06488946,3451.9,3451.8,3.0]
[1719886018992,0.09472124,3451.9,3451.8,3.0]
[1719886019293,2.8967,3452.2,3451.8,3.0]
[1719886019494,0.09472124,3451.9,3451.8,3.0]
[1719886019703,2.06488893,3451.9,3451.8,3.916108]
[1719886019857,2.15961017,3451.9,3451.8,3.916108]
[1719886021116,0.09472124,3451.9,3451.8,3.916108]
[1719886021485,2.06488159,3451.9,3451.8,3.916108]
[1719886021678,2.15955073,3451.9,3451.8,3.916108]
[1719886022019,2.15955077,3451.9,3451.8,3.916108]
[1719886024304,0.09466914,3451.9,3451.8,3.916108]
[1719886024490,0.09466914,3451.9,3451.8,4.741108]
[1719886024689,2.06487953,3451.9,3451.8,4.741108]
[1719886024899,2.15954867,3451.9,3451.8,4.741108]
[1719886027522,0.09466914,3451.9,3451.8,4.741108]
[1719886027681,2.15953484,3451.9,3451.8,4.741108]
[1719886027879,2.0648657,3451.9,3451.8,4.741108]
[1719886028193,0.09463657,3451.9,3451.8,4.741108]
[1719886028393,2.0648657,3452.0,3451.8,4.741108]
[1719886028605,2.15950227,3451.9,3451.8,4.741108]
[1719886030824,2.15947087,3451.9,3451.8,4.741108]
[1719886031324,2.15946978,3451.9,3451.8,4.741108]
[1719886031500,0.09463657,3451.9,3451.8,4.741108]
[1719886031820,2.89659,3452.4,3451.9,2.2504]
[1719886032021,2.5662114,3452.3,3451.9,2.2504]
[1719886032181,2.5662114,3452.2,3451.9,2.2504]
[1719886032382,2.5662114,3452.1,3451.9,2.2504]
[1719886032584,2.06478741,3452.0,3451.9,2.2504]
[1719886032783,2.06478741,3452.3,3451.9,3.43737]
[1719886033017,2.56621171,3452.2,3451.9,2.2504]
[1719886033313,2.56621171,3452.1,3451.9,2.2504]
[1719886033525,2.06478741,3452.0,3451.9,2.2504]
[1719886034117,2.06478654,3452.0,3451.9,2.2504]
[1719886034316,2.06478654,3452.3,3451.9,3.437361]
[1719886034519,2.56620998,3452.2,3451.9,3.437361]
[1719886034719,2.56620998,3452.1,3451.9,3.437361]
[1719886034879,2.06478654,3452.0,3451.9,2.2504]
[1719886035379,2.89659,3452.4,3451.9,2.2504]
[1719886035380,2.06478654,3452.3,3451.9,2.2504]
[1719886035620,2.56621007,3452.2,3451.9,2.2504]
[1719886035795,2.56621007,3452.1,3451.9,2.2504]
[1719886035998,2.06478654,3452.0,3451.9,2.2504]
[1719886036322,2.06478654,3452.3,3451.9,3.437361]
[1719886036518,0.50142334,3452.2,3451.9,3.437361]
[1719886036718,2.56620988,3452.1,3451.9,3.437361]
[1719886036913,2.06478654,3452.0,3451.9,3.437361]
[1719886037100,2.89659,3452.4,3451.9,3.437361]
[1719886037298,2.56620383,3452.3,3451.9,3.437361]
[1719886037503,2.56620383,3452.2,3451.9,3.437361]
[1719886037704,2.56620383,3452.1,3451.9,3.437361]
[1719886038009,2.0647818,3452.0,3451.9,2.2504]
[1719886038201,2.0647818,3452.3,3451.9,2.2504]
[1719886038403,2.56620616,3452.2,3451.9,2.2504]
[1719886038607,2.56620616,3452.1,3451.9,2.2504]
[1719886038787,2.0647818,3452.0,3451.9,3.437361]
[1719886038988,2.89612,3452.9,3452.2,2.8967]
[1719886039228,5.48586107,3452.8,3452.2,3.7217]
[1719886039488,2.89612,3452.9,3452.2,3.7217]
[1719886039489,4.83364218,3452.7,3452.2,3.7217]
[1719886039791,2.56607481,3452.6,3452.2,3.7217]
[1719886040002,2.56607481,3452.5,3452.2,3.7217]
[1719886040216,2.06468414,3452.4,3452.2,3.7217]
[1719886040405,2.06463696,3452.3,3452.2,4.13295304]
[1719886040737,2.06463696,3452.8,3452.2,3.7217]
[1719886040902,0.50138115,3452.7,3452.2,3.7217]
[1719886041086,2.89612,3452.9,3452.2,3.7217]
[1719886041087,2.56601811,3452.6,3452.2,3.7217]
[1719886041286,2.89612,3452.9,3452.2,3.7217]
[1719886041287,2.56601811,3452.5,3452.2,3.7217]
[1719886041512,2.06463696,3452.4,3452.2,3.7217]
[1719886041732,2.06463696,3452.3,3452.2,3.7217]
[1719886041929,4.33221175,3452.7,3452.2,3.7217]
[1719886042087,2.56601953,3452.6,3452.2,3.7217]
[1719886042289,5.28151,3452.8,3452.2,2.8967]
[1719886042290,2.56601953,3452.5,3452.2,2.8967]
[1719886042602,2.06463696,3452.4,3452.2,2.8967]
[1719886042800,2.06463696,3452.3,3452.2,2.8967]
[1719886043016,2.06463696,3452.3,3452.2,3.808479]
[1719886043227,4.33226016,3452.7,3452.2,3.808479]
[1719886043533,2.06467829,3452.6,3452.2,2.8967]
[1719886043730,2.56606745,3452.5,3452.2,2.8967]
[1719886043901,5.28151,3452.8,3452.2,2.8967]
[1719886044094,5.48586961,3452.7,3452.2,2.8967]
[1719886044436,2.66086113,3452.6,3452.2,2.8967]
[1719886044640,2.56606823,3452.5,3452.2,2.8967]
[1719886044790,2.06467888,3452.4,3452.2,2.8967]
[1719886045138,2.06467888,3452.3,3452.2,2.8967]
[1719886045602,2.06467888,3452.7,3452.2,2.8967]
[1719886045803,0.0947929,3452.3,3452.2,2.8967]
[1719886045995,2.06467888,3452.5,3452.2,2.8967]
[1719886046204,0.0947929,3452.3,3452.2,2.8967]
[1719886046434,2.06467888,3452.3,3452.2,2.8967]
[1719886046606,0.0947929,3452.3,3452.2,2.8967]
[1719886046935,2.06467888,3452.3,3452.2,4.633479]
[1719886047132,2.15949457,3452.3,3452.2,3.411279]
[1719886047296,2.06467888,3452.3,3452.2,3.411279]
[1719886047621,0.09481569,3452.3,3452.2,3.411279]
[1719886047822,2.06467888,3452.3,3452.2,3.411279]
[1719886048023,0.09481569,3452.3,3452.2,3.411279]
[1719886048224,2.06467888,3452.6,3452.2,3.411279]
[1719886048535,0.50138729,3452.5,3452.2,2.4995]
[1719886048739,2.06467888,3452.4,3452.2,2.4995]
[1719886049261,0.09481569,3452.3,3452.2,2.4995]
[1719886049404,2.15949457,3452.3,3452.2,2.4995]
[1719886050013,2.15949807,3452.3,3452.1,0.825]
[1719886050305,2.06468238,3452.2,3452.1,0.825]
[1719886050931,0.09481569,3452.2,3452.1,0.825]
[1719886051260,2.06468238,3452.5,3452.1,0.825]
[1719886051438,0.09481569,3452.2,3452.1,0.825]
[1719886051795,2.06468238,3452.3,3452.1,0.825]
[1719886052063,2.15949807,3452.2,3452.1,0.825]
[1719886053074,0.09481569,3452.2,3452.1,0.825]
[1719886053251,2.06469216,3452.5,3452.1,0.825]
[1719886053454,0.09481569,3452.2,3452.1,0.825]
[1719886053759,2.06469216,3452.3,3452.1,2.036837]
[1719886053966,2.15950785,3452.2,3452.1,0.825]
[1719886056370,0.09481569,3452.2,3452.1,0.825]
[1719886056731,2.06469619,3452.2,3452.1,0.825]
[1719886057028,0.09481569,3452.2,3452.1,0.825]
[1719886057268,2.06469909,3452.4,3452.1,0.825]
[1719886057559,0.09478313,3452.2,3452.1,0.825]
[1719886057760,2.06469909,3452.2,3452.1,1.99936877]
[1719886057967,0.09478313,3452.2,3452.1,1.99936877]
[1719886058326,2.06469909,3452.2,3452.1,1.99936877]
[1719886058559,2.15948222,3452.2,3452.1,1.99936877]
[1719886059471,2.15947794,3452.2,3452.1,1.99936877]
[1719886062583,0.09478313,3452.2,3452.1,1.99936877]
[1719886062958,2.06469811,3452.2,3452.1,1.99936877]
[1719886063159,2.15948124,3452.2,3452.1,1.99936877]
[1719886063472,2.15948124,3452.2,3452.1,4.89614877]
[1719886063856,0.09478313,3452.2,3452.1,4.89614877]
[1719886064058,2.89629,3452.7,3452.2,3.0]
[1719886064362,2.56602899,3452.6,3452.2,3.0]
[1719886064570,2.56602899,3452.5,3452.2,3.0]
[1719886064866,2.56602899,3452.4,3452.2,3.0]
[1719886065167,2.06464923,3452.3,3452.2,3.0]
[1719886065567,2.06464923,3452.6,3452.2,3.0]
[1719886065763,2.89629,3452.7,3452.2,3.0]
[1719886065993,2.56604693,3452.6,3452.2,3.0]
[1719886066198,2.89629,3452.7,3452.2,3.0]
[1719886066199,2.56604693,3452.5,3452.2,3.0]
[1719886066369,2.56604693,3452.4,3452.2,3.0]
[1719886066560,2.89629,3452.7,3452.2,3.0]
[1719886066561,2.06466271,3452.3,3452.2,3.0]
[1719886067302,2.06466271,3452.6,3452.2,3.0]
[1719886067479,0.50138655,3452.5,3452.2,3.0]
[1719886067692,2.89629,3452.7,3452.2,3.0]
[1719886067693,2.56604926,3452.4,3452.2,3.0]
[1719886067873,2.06466271,3452.3,3452.2,3.0]
[1719886068590,2.06466271,3452.6,3452.2,3.0]
[1719886068907,2.56604774,3452.5,3452.2,3.0]
[1719886069205,2.56605333,3452.4,3452.2,3.0]
[1719886069431,2.06466755,3452.3,3452.2,3.0]
[1719886069937,2.06466755,3452.6,3452.2,3.0]
[1719886070091,2.56604849,3452.5,3452.2,3.0]
[1719886070433,2.56604849,3452.4,3452.2,3.0]
[1719886070627,2.06466755,3452.3,3452.2,3.0]
[1719886071039,0.50138761,3452.3,3452.2,3.0]
[1719886071525,2.56605516,3452.3,3452.2,3.0]
[1719886072133,2.56618908,3452.3,3452.2,3.0]
[1719886074636,2.66101129,3452.3,3452.2,3.0]
[1719886075254,0.09482221,3452.3,3452.2,3.0]
[1719886075452,2.66100677,3452.3,3452.2,3.0]
[1719886076356,2.89679,3452.1,3451.7,3.0]
[1719886076656,2.6609579,3452.0,3451.7,3.0]
[1719886076959,2.06476718,3451.9,3451.7,3.825]
[1719886077544,2.15954052,3451.8,3451.7,3.825]
[1719886077721,2.15954052,3451.8,3451.7,6.825]
[1719886078029,2.15954052,3451.8,3451.7,7.60238156]
[1719886078622,2.15964108,3451.8,3451.7,7.60238156]
[1719886079534,0.09477334,3451.8,3451.7,7.60238156]
[1719886079862,2.89679,3452.1,3451.7,7.60238156]
[1719886080153,0.09477334,3451.8,3451.7,6.825]
[1719886080558,2.89679,3452.1,3451.7,6.825]
[1719886080977,2.06486924,3451.8,3451.7,6.825]
[1719886081550,2.15964258,3451.8,3451.7,6.825]
[1719886083771,0.09477334,3451.8,3451.7,6.825]
[1719886084134,2.0648897,3451.9,3451.7,6.825]
[1719886084330,2.89679,3452.1,3451.7,6.825]
[1719886084331,2.15965258,3451.8,3451.7,6.825]
[1719886086433,2.15965258,3451.8,3451.7,8.321369]
[1719886087278,2.15962076,3451.8,3451.7,8.321369]
[1719886090979,2.15963894,3451.8,3451.7,8.321369]
[1719886092707,0.09477334,3451.8,3451.7,8.321369]
[1719886092868,5.19008,3452.4,3451.7,10.632969]
[1719886093068,0.09471797,3451.8,3451.7,10.632969]
[1719886093326,5.19008,3452.4,3451.7,13.530089]
[1719886093597,2.56626526,3452.3,3451.9,0.825]
[1719886093808,2.56626526,3452.2,3451.9,0.825]
[1719886093972,2.06482843,3452.1,3451.9,0.825]
[1719886094170,5.19008,3452.4,3451.9,0.825]
[1719886094374,2.566269,3452.3,3451.9,0.825]
[1719886094588,5.19008,3452.4,3451.9,0.825]
[1719886094904,2.56626511,3452.3,3451.9,0.825]
[1719886095102,2.56626511,3452.2,3451.9,0.825]
[1719886095314,5.19008,3452.4,3451.9,0.825]
[1719886095315,2.06482832,3452.1,3451.9,0.825]
[1719886095610,2.06482832,3452.0,3451.9,0.825]
[1719886095773,2.06482832,3452.3,3451.9,0.825]
[1719886096101,2.56625667,3452.2,3451.9,0.825]
[1719886096293,2.06482832,3452.1,3451.9,0.825]
[1719886096491,2.06482832,3452.0,3451.9,0.825]
[1719886096698,2.06482832,3452.3,3451.9,0.825]
[1719886096895,0.50142638,3452.2,3451.9,0.825]
[1719886097207,5.19008,3452.4,3451.9,0.825]
[1719886097587,5.46285145,3452.3,3451.9,0.825]
[1719886097787,2.56622145,3452.2,3451.9,0.825]
[1719886098011,2.06479518,3452.1,3451.9,0.825]
[1719886098176,2.06479518,3452.0,3451.9,0.825]
[1719886098705,2.06479518,3452.2,3451.9,0.825]
[1719886099003,0.50143293,3452.1,3451.9,0.825]
[1719886099308,2.06479518,3452.0,3451.9,0.825]
[1719886099817,2.06479518,3452.2,3451.9,0.825]
[1719886100119,0.5014339,3452.1,3451.9,0.825]
[1719886100274,2.06479518,3452.0,3451.9,0.825]
[1719886100773,2.06480946,3452.2,3451.9,0.825]
[1719886100994,0.50143138,3452.1,3451.9,0.825]
[1719886101212,2.06480946,3452.0,3451.9,0.825]
[1719886101406,2.06480946,3452.2,3451.9,0.825]
[1719886101576,0.50143133,3452.1,3451.9,0.825]
[1719886101775,2.06480946,3452.0,3451.9,0.825]
[1719886102022,2.06480946,3452.2,3451.9,0.825]
[1719886102198,2.56624092,3452.1,3451.9,0.825]
[1719886102510,2.06480946,3452.0,3451.9,0.825]
[1719886102716,2.06480946,3452.2,3451.9,0.825]
[1719886102876,0.50143129,3452.1,3451.9,0.825]
[1719886103077,2.06480946,3452.0,3451.9,0.825]
[1719886103476,2.06480946,3452.2,3451.9,0.825]
[1719886103678,2.56624076,3452.1,3451.9,0.825]
[1719886103872,2.06481109,3452.0,3451.9,0.825]
[1719886104076,2.06481109,3452.2,3451.9,0.825]
[1719886104294,2.06481249,3452.1,3451.9,0.825]
[1719886104506,2.56624426,3452.0,3451.9,0.825]
[1719886104904,2.6609818,3452.0,3451.7,8.3116]
[1719886105076,2.06481249,3451.9,3451.8,0.825]
[1719886105483,0.09473754,3451.9,3451.8,0.825]
[1719886105723,2.06481249,3451.9,3451.8,0.825]
[1719886105920,2.15955003,3451.9,3451.8,0.825]
[1719886106883,0.09473754,3451.9,3451.8,0.825]
[1719886107096,2.06483655,3452.2,3451.8,0.825]
[1719886107304,0.09473754,3451.9,3451.8,0.825]
[1719886107593,2.06483655,3451.9,3451.8,0.825]
[1719886107830,0.09473754,3451.9,3451.8,0.825]
[1719886108004,2.15957409,3451.9,3451.8,0.825]
[1719886110384,2.15956691,3451.9,3451.8,0.825]
[1719886113639,2.15956144,3451.9,3451.8,0.825]
[1719886114132,2.15952591,3451.9,3451.8,0.825]
[1719886114332,2.15952591,3451.9,3451.8,2.028379]
[1719886115320,2.15952591,3451.9,3451.8,4.925409]
[1719886115932,2.15952591,3451.9,3451.8,5.475409]
[1719886116143,2.06478837,3451.9,3451.8,7.803509]
[1719886116298,5.38679,3452.7,3451.8,7.803509]
[1719886116299,4.96113971,3452.6,3451.9,2.89688]
[1719886116500,5.48613841,3452.5,3452.1,0.825]
[1719886116700,2.89636,3452.6,3452.1,0.825]
[1719886116927,0.50142063,3452.4,3452.1,0.825]
[1719886117134,2.56619803,3452.3,3452.1,0.825]
[1719886117339,2.56619803,3452.2,3452.1,0.825]
[1719886119570,2.66094857,3452.2,3452.1,0.825]
[1719886120053,0.09475054,3452.2,3452.1,0.825]
[1719886120229,2.56620752,3452.2,3452.1,0.825]
[1719886120766,2.66095806,3452.2,3452.1,0.825]
[1719886121145,2.66095806,3452.2,3452.1,6.1049]
[1719886123160,0.09475054,3452.2,3452.1,6.1049]
[1719886123359,2.56618289,3452.2,3452.1,6.1049]
[1719886123653,2.6609595,3452.2,3452.1,6.1049]
[1719886123953,2.15955665,3452.2,3452.1,7.966659]
[1719886124167,2.06478004,3452.2,3452.1,13.907639]
[1719886124361,2.3417,3452.9,3452.5,3.0]
[1719886124522,2.56587495,3452.8,3452.5,3.825]
[1719886124721,2.3417,3452.9,3452.5,3.825]
[1719886124722,2.56587495,3452.7,3452.5,3.825]
[1719886124916,2.06453178,3452.6,3452.5,3.825]
[1719886125123,2.06453178,3452.8,3452.5,3.825]
[1719886125337,2.56588115,3452.7,3452.5,3.825]
[1719886125544,2.06453178,3452.6,3452.5,3.825]
[1719886125749,2.06453178,3452.8,3452.5,3.825]
[1719886125981,0.50135353,3452.7,3452.5,3.825]
[1719886126279,0.50135353,3452.6,3452.5,3.825]
[1719886126457,2.06456209,3452.8,3452.5,3.825]
[1719886126666,2.56592034,3452.7,3452.5,3.825]
[1719886126886,2.06454924,3452.6,3452.5,3.825]
[1719886127177,2.06454924,3452.8,3452.5,3.825]
[1719886127378,0.50136832,3452.7,3452.5,3.825]
[1719886127540,2.06454924,3452.6,3452.5,3.825]
[1719886127740,0.50136527,3452.6,3452.5,3.825]
[1719886127973,2.06454924,3452.6,3452.5,3.825]
[1719886128157,2.06454924,3452.8,3452.5,3.825]
[1719886128372,2.06454924,3452.7,3452.5,3.825]
[1719886128574,2.06454924,3452.6,3452.5,3.825]
[1719886129159,2.06454924,3452.8,3452.5,3.825]
[1719886129377,2.06454924,3452.7,3452.5,3.825]
[1719886129543,2.06453528,3452.6,3452.5,3.825]
[1719886129891,2.3417,3452.9,3452.5,3.825]
[1719886129892,2.06453528,3452.8,3452.5,3.825]
[1719886130059,2.06453528,3452.7,3452.5,3.825]
[1719886130389,2.06453528,3452.6,3452.5,3.825]
[1719886130770,2.06453528,3452.8,3452.5,3.825]
[1719886131090,2.06453528,3452.7,3452.5,3.825]
[1719886131256,2.06453528,3452.6,3452.5,3.825]
[1719886131585,2.06453528,3452.8,3452.5,3.825]
[1719886131794,2.06453528,3452.7,3452.5,3.825]
[1719886132119,2.06453528,3452.6,3452.5,3.825]
[1719886132463,2.06453528,3452.8,3452.5,3.825]
[1719886132985,2.06453157,3452.7,3452.5,3.825]
[1719886133173,2.06453157,3452.6,3452.5,3.825]
[1719886133379,2.06453157,3452.8,3452.5,3.825]
[1719886133979,2.06453157,3452.8,3452.5,3.0]
[1719886134158,0.50136518,3452.7,3452.5,3.0]
[1719886134361,2.06453157,3452.6,3452.5,3.0]
[1719886134591,0.09484824,3452.6,3452.5,3.0]
[1719886134894,2.06453157,3452.7,3452.5,3.0]
[1719886135060,2.15937981,3452.6,3452.5,3.0]
[1719886135871,0.09484824,3452.6,3452.5,3.0]
[1719886136075,2.06459295,3452.6,3452.5,3.0]
[1719886136371,0.09484824,3452.6,3452.5,3.0]
[1719886136561,2.06458259,3452.6,3452.5,3.0]
[1719886136899,0.09486451,3452.6,3452.5,3.0]
[1719886137195,2.06458259,3452.7,3452.5,3.0]
[1719886137361,2.1594471,3452.6,3452.5,3.0]
[1719886139218,2.15944099,3452.6,3452.5,3.0]
[1719886141606,0.09486451,3452.6,3452.5,3.0]
[1719886141904,2.06455997,3452.6,3452.5,3.0]
[1719886142068,0.09486451,3452.6,3452.5,3.0]
[1719886142271,2.06456384,3452.6,3452.5,3.0]
[1719886142472,0.09486451,3452.6,3452.5,3.0]
[1719886142673,2.06456384,3452.7,3452.5,3.0]
[1719886142887,2.15945114,3452.6,3452.5,3.0]
[1719886144905,0.0948873,3452.6,3452.5,3.0]
[1719886145116,2.06459359,3452.8,3452.5,3.0]
[1719886145409,0.0948873,3452.6,3452.5,3.0]
[1719886145570,2.06459485,3452.8,3452.5,3.0]
[1719886145766,0.0948873,3452.6,3452.5,3.0]
[1719886146003,2.06459485,3452.6,3452.5,3.0]
[1719886146303,0.0948873,3452.6,3452.5,3.0]
[1719886146505,2.89612,3452.9,3452.5,3.0]
[1719886146673,0.0948873,3452.6,3452.5,3.0]
[1719886147012,2.0645845,3452.6,3452.5,3.0]
[1719886147183,2.1594718,3452.6,3452.5,3.0]
[1719886148024,0.0948873,3452.6,3452.5,3.0]
[1719886148507,2.15947294,3452.6,3452.5,3.0]
[1719886149309,2.66083125,3452.6,3452.5,3.0]
[1719886151307,0.09489057,3452.6,3452.5,3.0]
[1719886151474,2.56594972,3452.6,3452.5,3.0]
[1719886151815,2.6608175,3452.6,3452.5,3.0]
[1719886154582,0.09486778,3452.6,3452.5,3.0]
[1719886154781,0.50136122,3452.6,3452.5,3.0]
[1719886155106,2.66084083,3452.6,3452.5,3.0]
[1719886157840,2.15945185,3452.6,3452.5,3.0]
[1719886158021,2.66080697,3452.6,3452.5,3.0]
[1719886158813,2.66080697,3452.6,3452.3,2.3706]
[1719886159019,2.56592617,3452.5,3452.3,3.1956]
[1719886159246,2.06457105,3452.4,3452.3,3.1956]
[1719886159545,2.15942907,3452.4,3452.3,4.999512]
[1719886161016,0.09485802,3452.4,3452.3,4.999512]
[1719886161706,2.06457672,3452.6,3452.3,4.999512]
[1719886161905,2.15943474,3452.5,3452.3,3.7456]
[1719886162133,2.06457672,3452.4,3452.3,3.7456]
[1719886162518,0.09485802,3452.4,3452.3,3.7456]
[1719886162723,2.06457672,3452.7,3452.3,3.7456]
[1719886162949,0.09485802,3452.4,3452.3,6.64221]
[1719886163116,2.06457672,3452.5,3452.3,7.896099]
[1719886163492,2.15943474,3452.4,3452.3,6.64221]
[1719886164044,0.09485802,3452.4,3452.3,6.64221]
[1719886164235,2.15936977,3452.4,3452.3,6.64221]
[1719886164435,2.06451179,3452.4,3452.3,6.64221]
[1719886164661,0.09486126,3452.4,3452.3,6.64221]
[1719886164858,0.1187478,3453.7,3452.9,3.0]
[1719886165022,2.56563159,3453.6,3453.5,2.89561]
[1719886165371,2.06430533,3453.6,3453.5,3.72061]
[1719886165522,0.1187478,3453.7,3453.6,2.89552]
[1719886166227,0.1187478,3453.7,3453.6,3.44552]
[1719886166760,0.1187478,3453.7,3453.6,4.27052]
[1719886169487,0.1187478,3453.7,3453.6,4.83850673]
[1719886177877,0.20486273,3453.7,3453.6,1.94298673]
[1719886181795,0.20486273,3453.7,3453.6,4.83850673]
[1719886182105,0.1187478,3453.7,3453.6,4.83850673]
[1719886188626,0.1187478,3453.7,3453.6,1.94298673]
[1719886188824,0.20487577,3453.7,3453.3,3.0]
[1719886189032,0.20487577,3453.7,3453.4,3.0]
[1719886189033,2.55907577,3453.7,3453.4,3.0]
[1719886198644,0.20487577,3453.7,3453.4,3.0]
[1719886206177,0.20487577,3453.7,3453.6,2.89552]
[1719886206320,0.20487577,3453.7,3453.6,5.51041588]
[1719886208264,0.20487577,3453.7,3453.6,5.56832062]
[1719886208576,0.20487577,3453.7,3453.6,5.51041588]
[1719886208863,0.20487577,3453.7,3453.6,5.56832066]
[1719886209364,0.20487577,3453.7,3453.6,5.51041588]
[1719886212369,0.20487577,3453.7,3453.6,7.96321588]
[1719886212889,0.1187478,3453.7,3453.6,7.96321588]
[1719886214178,2.3276,3454.5,3453.9,3.0]
[1719886214357,2.3276,3454.5,3454.3,0.825]
[1719886214547,0.08329308,3454.4,3454.3,0.825]
[1719886215278,0.08329308,3454.4,3453.9,3.0]
[1719886215279,0.08329308,3454.4,3454.1,2.89504]
[1719886215485,0.08329308,3454.4,3454.2,2.254028]
[1719886215659,2.4609,3454.6,3454.2,2.254028]
[1719886215856,0.08329308,3454.3,3454.2,1.375]
[1719886216076,2.4609,3454.6,3454.2,1.375]
[1719886216370,0.50109642,3454.5,3454.2,0.55]
[1719886216551,2.4609,3454.6,3454.2,0.55]
[1719886216751,0.08329308,3454.4,3454.2,0.55]
[1719886217288,2.4609,3454.6,3454.2,1.375]
[1719886217883,0.08329308,3454.5,3454.2,1.375]
[1719886219088,0.08329308,3454.5,3454.2,0.55]
[1719886219267,0.08329308,3454.5,3454.1,0.55]
[1719886220107,2.89495,3454.3,3453.9,3.0]
[1719886220259,2.4541,3454.2,3453.9,3.0]
[1719886220785,0.08341701,3454.1,3453.9,3.0]
[1719886221544,0.08341701,3454.1,3454.0,0.825]
[1719886222350,2.89495,3454.3,3453.9,3.0]
[1719886222779,0.08341701,3454.2,3453.9,3.0]
[1719886223181,2.89495,3454.3,3453.9,3.0]
[1719886223395,0.08340398,3454.1,3453.9,3.0]
[1719886223550,2.89495,3454.3,3453.9,3.0]
[1719886223749,0.08340398,3454.0,3453.9,3.0]
[1719886224253,2.4541,3454.4,3453.9,3.0]
[1719886224571,0.08340398,3454.0,3453.9,3.0]
[1719886225089,2.89494,3454.3,3453.9,3.0]
[1719886225473,0.08340398,3454.2,3453.9,3.0]
[1719886225655,2.89494,3454.3,3453.9,3.0]
[1719886225850,0.08340398,3454.1,3453.9,3.0]
[1719886226050,2.89494,3454.3,3453.9,3.0]
[1719886226252,0.08340398,3454.0,3453.9,3.0]
[1719886226486,2.89494,3454.3,3453.9,3.0]
[1719886226695,0.50116933,3454.2,3453.9,3.0]
[1719886226866,0.08339418,3454.2,3453.9,3.0]
[1719886227065,2.89494,3454.3,3453.9,3.0]
[1719886227259,0.08339418,3454.1,3453.9,3.0]
[1719886227453,2.89494,3454.3,3453.9,3.0]
[1719886227657,0.08339418,3454.0,3453.9,3.0]
[1719886227965,2.89494,3454.3,3453.9,3.0]
[1719886228186,0.08339418,3454.0,3453.9,3.0]
[1719886228807,3.39618763,3454.2,3453.9,3.0]
[1719886229004,0.08339418,3454.0,3453.9,3.0]
[1719886229163,3.39618763,3454.2,3453.9,3.0]
[1719886229359,0.08336811,3454.0,3453.9,3.0]
[1719886229909,3.39618763,3454.2,3453.9,3.0]
[1719886230099,0.08336811,3454.0,3453.9,3.0]
[1719886230314,3.39618763,3454.2,3453.9,3.0]
[1719886230457,0.08336811,3454.0,3453.9,3.0]
[1719886230660,3.39618763,3454.2,3453.9,3.0]
[1719886230859,0.08336811,3454.0,3453.9,3.0]
[1719886231057,3.39618763,3454.2,3453.9,3.0]
[1719886231272,0.08336811,3454.0,3453.9,3.0]
[1719886231472,3.39618763,3454.2,3453.9,3.0]
[1719886231675,0.08336811,3454.0,3453.9,3.0]
[1719886231870,2.89503,3454.2,3453.9,3.0]
[1719886232070,0.08336811,3454.0,3453.9,3.0]
[1719886232270,2.89503,3454.2,3453.9,3.0]
[1719886232511,0.08336811,3454.0,3453.9,3.0]
[1719886232816,2.89503,3454.2,3453.9,3.0]
[1719886232986,0.08336811,3454.0,3453.9,3.0]
[1719886233604,2.89503,3454.2,3453.9,3.0]
[1719886233780,0.08336811,3454.0,3453.9,3.0]
[1719886233980,2.4154,3454.1,3453.9,3.0]
[1719886234186,0.08336811,3454.0,3453.9,3.0]
[1719886235416,2.97855811,3454.0,3453.9,3.0]
[1719886239285,2.97855811,3454.0,3453.9,3.60701128]
[1719886239622,0.08336811,3454.0,3453.9,3.60701128]
[1719886239990,2.89512,3454.1,3453.9,3.60701128]
[1719886240311,0.08345289,3454.0,3453.9,3.60701128]
[1719886240625,0.08345289,3454.0,3453.9,3.66491358]
[1719886240842,0.08345289,3454.0,3453.9,4.21491358]
[1719886241128,2.89465,3454.7,3454.0,2.4481]